fUSD/lending_fUSD_20260430
["ID","MTS","AMOUNT","RATE_DAILY","PERIOD"]
[421355983,1777488682000,-500.0,0.00041096,120]
[421355978,1777488682000,-383.207372,0.00041096,120]
[421355988,1777488682000,-271.877754,0.00041096,120]
[421355985,1777488682000,-271.877754,0.00041096,120]
[421355981,1777488682000,-271.877754,0.00041096,120]
[421355979,1777488682000,-500.0,0.00041096,120]
[421355980,1777488682000,-158.134097,0.00041096,120]
[421355977,1777488682000,-158.134097,0.00041096,120]
[421355982,1777488682000,-383.207372,0.00041096,120]
[421356052,1777488684000,-271.877752,0.00041096,120]
[421356041,1777488684000,-383.207372,0.00041096,120]
[421356049,1777488684000,-501.867959,0.00041096,120]
[421356045,1777488684000,-501.867959,0.00041096,120]
[421356046,1777488684000,-383.207362,0.00041096,120]
[421356043,1777488684000,-271.877754,0.00041096,120]
[421356047,1777488684000,-271.877754,0.00041096,120]
[421356044,1777488684000,-158.134097,0.00041096,120]
[421356048,1777488684000,-158.134102,0.00041096,120]
[421356042,1777488684000,-501.867959,0.00041096,120]
[421356059,1777488684000,-500.0,0.00041096,120]
[421356050,1777488684000,-271.877754,0.00041096,120]
[421356053,1777488684000,-501.867959,0.00041096,120]
[421356054,1777488684000,-501.867959,0.00041096,120]
[421356057,1777488684000,-501.867959,0.00041096,120]
[421356058,1777488684000,-501.867956,0.00041096,120]
[421356060,1777488684000,-500.0,0.00041096,120]
[421356056,1777488684000,-501.867959,0.00041096,120]
[421356055,1777488684000,-501.867959,0.00041096,120]
[421356062,1777488684000,-464.065981,0.00041096,120]
[421356072,1777488684000,-247.92357,0.00041096,120]
[421356039,1777488684000,-501.867959,0.00041096,120]
[421356051,1777488684000,-501.867959,0.00041096,120]
[421356040,1777488684000,-158.134097,0.00041096,120]
[421356026,1777488684000,-501.867959,0.00041096,120]
[421356032,1777488684000,-158.134097,0.00041096,120]
[421356015,1777488684000,-158.134097,0.00041096,120]
[421356014,1777488684000,-473.25047697,0.00041096,120]
[421356016,1777488684000,-271.877754,0.00041096,120]
[421356019,1777488684000,-158.134097,0.00041096,120]
[421356017,1777488684000,-383.207372,0.00041096,120]
[421356021,1777488684000,-383.207372,0.00041096,120]
[421356022,1777488684000,-501.867959,0.00041096,120]
[421356020,1777488684000,-271.877754,0.00041096,120]
[421356018,1777488684000,-501.867959,0.00041096,120]
[421356024,1777488684000,-158.134097,0.00041096,120]
[421356031,1777488684000,-271.877754,0.00041096,120]
[421356028,1777488684000,-158.134097,0.00041096,120]
[421356023,1777488684000,-271.877754,0.00041096,120]
[421356027,1777488684000,-271.877754,0.00041096,120]
[421356029,1777488684000,-383.207372,0.00041096,120]
[421356030,1777488684000,-501.867959,0.00041096,120]
[421356033,1777488684000,-383.207372,0.00041096,120]
[421356061,1777488684000,-247.92357,0.00041096,120]
[421356037,1777488684000,-383.207372,0.00041096,120]
[421356034,1777488684000,-501.867959,0.00041096,120]
[421356035,1777488684000,-271.877754,0.00041096,120]
[421356036,1777488684000,-158.134097,0.00041096,120]
[421356025,1777488684000,-383.207372,0.00041096,120]
[421356063,1777488684000,-247.92357,0.00041096,120]
[421356038,1777488684000,-271.877754,0.00041096,120]
[421356066,1777488684000,-247.92357,0.00041096,120]
[421356096,1777488684000,-247.923572,0.00041096,120]
[421356093,1777488684000,-188.500057,0.00041096,120]
[421356092,1777488684000,-247.92357,0.00041096,120]
[421356091,1777488684000,-188.500057,0.00041096,120]
[421356095,1777488684000,-188.500057,0.00041096,120]
[421356099,1777488684000,-188.500057,0.00041096,120]
[421356103,1777488684000,-646.358495,0.00041096,120]
[421356101,1777488684000,-188.500058,0.00041096,120]
[421356102,1777488684000,-646.358495,0.00041096,120]
[421356110,1777488684000,-646.358495,0.00041096,120]
[421356094,1777488684000,-247.92357,0.00041096,120]
[421356104,1777488684000,-646.358495,0.00041096,120]
[421356109,1777488684000,-151.0,0.00041096,60]
[421356105,1777488684000,-151.0,0.00041096,60]
[421356107,1777488684000,-151.0,0.00041096,60]
[421356106,1777488684000,-646.358495,0.00041096,120]
[421356108,1777488684000,-646.358495,0.00041096,120]
[421356113,1777488684000,-151.0,0.00041096,60]
[421356112,1777488684000,-646.358495,0.00041096,120]
[421356114,1777488684000,-646.358495,0.00041096,120]
[421356115,1777488684000,-151.0,0.00041096,60]
[421356064,1777488684000,-247.92357,0.00041096,120]
[421356100,1777488684000,-188.500057,0.00041096,120]
[421356097,1777488684000,-188.500057,0.00041096,120]
[421356111,1777488684000,-151.0,0.00041096,60]
[421356098,1777488684000,-188.500057,0.00041096,120]
[421356070,1777488684000,-247.92357,0.00041096,120]
[421356069,1777488684000,-188.500057,0.00041096,120]
[421356068,1777488684000,-247.92357,0.00041096,120]
[421356071,1777488684000,-188.500057,0.00041096,120]
[421356067,1777488684000,-188.500057,0.00041096,120]
[421356065,1777488684000,-247.92357,0.00041096,120]
[421356074,1777488684000,-188.500057,0.00041096,120]
[421356073,1777488684000,-188.500057,0.00041096,120]
[421356084,1777488684000,-247.92357,0.00041096,120]
[421356085,1777488684000,-188.500057,0.00041096,120]
[421356081,1777488684000,-188.500057,0.00041096,120]
[421356075,1777488684000,-247.92357,0.00041096,120]
[421356080,1777488684000,-247.92357,0.00041096,120]
[421356090,1777488684000,-247.92357,0.00041096,120]
[421356076,1777488684000,-188.500057,0.00041096,120]
[421356088,1777488684000,-247.92357,0.00041096,120]
[421356086,1777488684000,-247.92357,0.00041096,120]
[421356078,1777488684000,-188.500057,0.00041096,120]
[421356089,1777488684000,-188.500057,0.00041096,120]
[421356082,1777488684000,-188.500057,0.00041096,120]
[421356077,1777488684000,-247.92357,0.00041096,120]
[421356079,1777488684000,-247.92357,0.00041096,120]
[421356083,1777488684000,-247.92357,0.00041096,120]
[421356087,1777488684000,-188.500057,0.00041096,120]
[421356124,1777488685000,-500.0,0.00041096,120]
[421356120,1777488685000,-151.0,0.00041096,60]
[421356119,1777488685000,-646.358495,0.00041096,120]
[421356118,1777488685000,-151.0,0.00041096,60]
[421356116,1777488685000,-357.03118343,0.00041096,120]
[421356117,1777488685000,-289.32731157,0.00041096,120]
[421356122,1777488685000,-646.358495,0.00041096,120]
[421356121,1777488685000,-500.0,0.00041096,120]
[421356127,1777488685000,-500.0,0.00041096,120]
[421356131,1777488685000,-151.0,0.00041096,60]
[421356126,1777488685000,-151.0,0.00041096,60]
[421356129,1777488685000,-500.0,0.00035861,3]
[421356130,1777488685000,-13.36708602,0.00041096,120]
[421356125,1777488685000,-646.358495,0.00041096,120]
[421356128,1777488685000,-632.99140898,0.00041096,120]
[421356133,1777488685000,-18.82781588,0.00041096,120]
[421356132,1777488685000,-500.0,0.00041096,120]
[421356123,1777488685000,-151.0,0.00041096,60]
[421356138,1777488686000,201.25146579,0.00027453,120]
[421356135,1777488686000,200.0,0.00027397,120]
[421356137,1777488686000,200.0,0.00027453,120]
[421356136,1777488686000,200.0,0.00027453,120]
[421356134,1777488686000,200.0,0.00030136,120]
[421356139,1777488700000,1916.21,0.00030137,120]
[421356140,1777488706000,1916.21,0.00030137,120]
[421356142,1777488726000,200.0,0.00026098,120]
[421356141,1777488726000,200.0,0.0002728,120]
[421356144,1777489675000,1600.0,0.00028288,120]
[421356143,1777489675000,1600.0,0.00025717,120]
[421356148,1777489831000,-86.8506,0.00011817,2]
[421356147,1777489831000,-200.0,0.000118,4]
[421356174,1777489839000,-1017.148597,0.00011834,2]
[421356173,1777489839000,-145.01457655,0.00011834,2]
[421356172,1777489839000,-235.5147451,0.00011817,2]
[421356171,1777489839000,-2177.6346549,0.00011817,2]
[421356197,1777489840000,-551.16325953,0.000119,2]
[421356191,1777489840000,-274.18782645,0.00011834,2]
[421356193,1777489840000,-2500.0,0.0001186,2]
[421356194,1777489840000,-2500.0,0.0001186,2]
[421356199,1777489840000,-214.704482,0.00011975,2]
[421356196,1777489840000,-3058.85089664,0.000119,2]
[421356195,1777489840000,-1106.92984063,0.000119,2]
[421356192,1777489840000,-158.441,0.00011834,2]
[421356201,1777489840000,-379.46028546,0.00011975,2]
[421356200,1777489840000,-460.09815127,0.00011975,2]
[421356198,1777489840000,-500.0,0.000119,4]
[421356222,1777489845000,-4160.44156327,0.00011975,2]
[421356226,1777489845000,-2500.0,0.00013017,2]
[421356229,1777489845000,-210.67459966,0.00013698,2]
[421356223,1777489845000,-2500.0,0.00011975,2]
[421356231,1777489845000,-9554.25757247,0.00013699,2]
[421356224,1777489845000,-553.5362646,0.00012244,2]
[421356230,1777489845000,-150.99,0.00013699,2]
[421356227,1777489845000,-500.0,0.00013698,2]
[421356225,1777489845000,-2500.0,0.0001298,2]
[421356234,1777489846000,-1164.47507113,0.00013699,2]
[421356233,1777489846000,-345.92492887,0.00013699,2]
[421356232,1777489846000,-99.80749866,0.00013699,2]
[421356255,1777490441000,-500.0,0.00014305,2]
[421356254,1777490441000,-292.64135464,0.00014209,2]
[421356252,1777490441000,-300.0,0.00014209,2]
[421356258,1777490441000,-156.0707279,0.00014835,2]
[421356257,1777490441000,-150.0,0.00014507,2]
[421356256,1777490441000,-156.0707279,0.00014379,2]
[421356251,1777490441000,-300.0,0.00014209,2]
[421356253,1777490441000,-300.0,0.00014209,2]
[421356249,1777490441000,-150.0,0.00014209,2]
[421356241,1777490441000,-300.0,0.00012917,2]
[421356248,1777490441000,-2500.0,0.00013854,2]
[421356246,1777490441000,-2500.0,0.00013854,2]
[421356247,1777490441000,-2500.0,0.00013854,2]
[421356244,1777490441000,-2500.0,0.00013308,2]
[421356243,1777490441000,-62048.5672,0.00012918,2]
[421356245,1777490441000,-205.40721945,0.00013854,2]
[421356259,1777490441000,-150.99,0.00014835,2]
[421356242,1777490441000,-374.0,0.00012917,2]
[421356240,1777490441000,-150.0,0.00012917,2]
[421356250,1777490441000,-2500.0,0.00014209,2]
[421356261,1777490441000,-801.0,0.00015,2]
[421356260,1777490441000,-705.0,0.00015,2]
[421356262,1777490441000,-2692.0,0.00015,2]
[421356264,1777490441000,-156.0707279,0.00015747,2]
[421356283,1777490441000,-3352.99080346,0.00018235,60]
[421356284,1777490441000,-156.0707279,0.00018484,2]
[421356282,1777490441000,-166.66,0.00018147,2]
[421356280,1777490441000,-166.66,0.00017801,2]
[421356279,1777490441000,-156.0707279,0.00017571,2]
[421356278,1777490441000,-166.66,0.00017456,2]
[421356276,1777490441000,-553.53626457,0.00017187,2]
[421356277,1777490441000,-288.12538637,0.00017295,2]
[421356275,1777490441000,-156.0707279,0.00017115,2]
[421356281,1777490441000,-156.0707279,0.00018027,2]
[421356273,1777490441000,-32180.0639026,0.00017005,2]
[421356271,1777490441000,-156.0707279,0.00016659,2]
[421356272,1777490441000,-166.66,0.00016764,2]
[421356270,1777490441000,-2500.0,0.00016568,2]
[421356269,1777490441000,-1852.42,0.00016437,2]
[421356267,1777490441000,-200.0,0.00016384,2]
[421356268,1777490441000,-166.66,0.00016419,2]
[421356266,1777490441000,-156.0707279,0.00016203,2]
[421356265,1777490441000,-2000.0,0.000162,2]
[421356263,1777490441000,-156.0707279,0.00015291,2]
[421356274,1777490441000,-166.66,0.0001711,2]
[421356285,1777490442000,-156.0707279,0.0001894,2]
[421356286,1777490442000,-156.0707279,0.00019396,2]
[421356287,1777490442000,-1577.0,0.0001943,2]
[421356288,1777490442000,-1663.0,0.0001943,2]
[421356292,1777490442000,-422763.75787453,0.00019714,2]
[421356291,1777490442000,-360.22025958,0.00019713,2]
[421356290,1777490442000,-500.0,0.00019713,2]
[421356289,1777490442000,-416.471,0.0001943,2]
[421356293,1777490479000,640.0,0.00024836,120]
[421356294,1777490480000,640.0,0.0002794,120]
[421356295,1777490809000,150184.05922786,0.00030137,120]
[421356316,1777491031000,-1149.08,0.00019319,2]
[421356315,1777491031000,-1275.4256809,0.0001853,2]
[421356306,1777491031000,-2500.0,0.00014099,2]
[421356304,1777491031000,-2500.0,0.00013408,2]
[421356301,1777491031000,-38123.09935635,0.00012,2]
[421356303,1777491031000,-2500.0,0.000132,2]
[421356302,1777491031000,-7547.3228,0.00012818,2]
[421356307,1777491031000,-2500.0,0.00014099,2]
[421356305,1777491031000,-201.19880025,0.00013999,2]
[421356309,1777491031000,-156.07072791,0.00014397,2]
[421356317,1777491031000,-158.442,0.00019319,2]
[421356311,1777491031000,-156.07072791,0.00016224,2]
[421356313,1777491031000,-156.07072791,0.0001805,2]
[421356314,1777491031000,-2659.6922492,0.0001853,2]
[421356310,1777491031000,-2000.0,0.000162,2]
[421356312,1777491031000,-3127.87,0.00016224,2]
[421356321,1777491031000,-395.38304613,0.00019614,2]
[421356319,1777491031000,-5000.0,0.00019614,2]
[421356320,1777491031000,-2500.0,0.00019614,2]
[421356318,1777491031000,-300.0,0.000195,2]
[421356308,1777491031000,-624.72470137,0.00014303,2]
[421356397,1777491032000,-500.0,0.00027009,2]
[421356383,1777491032000,-156.0,0.00026598,5]
[421356385,1777491032000,-1927.3708471,0.00026943,2]
[421356396,1777491032000,-500.0,0.00027009,2]
[421356395,1777491032000,-500.0,0.00027009,2]
[421356389,1777491032000,-500.0,0.00027009,2]
[421356393,1777491032000,-500.0,0.00027009,2]
[421356391,1777491032000,-500.0,0.00027009,2]
[421356398,1777491032000,-500.0,0.00027009,2]
[421356381,1777491032000,-150.0,0.00025863,2]
[421356377,1777491032000,-2000.0,0.00024954,2]
[421356387,1777491032000,-500.0,0.00027009,2]
[421356399,1777491032000,-500.0,0.00027009,2]
[421356401,1777491032000,-500.0,0.00027009,2]
[421356408,1777491032000,-500.0,0.00027009,2]
[421356410,1777491032000,-500.0,0.00027009,2]
[421356409,1777491032000,-500.0,0.00027009,2]
[421356379,1777491032000,-277.0,0.00025,2]
[421356411,1777491032000,-500.0,0.00027009,2]
[421356413,1777491032000,-500.0,0.00027009,2]
[421356402,1777491032000,-655.0,0.00027009,2]
[421356406,1777491032000,-500.0,0.00027009,2]
[421356403,1777491032000,-500.0,0.00027009,2]
[421356405,1777491032000,-500.0,0.00027009,2]
[421356404,1777491032000,-500.0,0.00027009,2]
[421356407,1777491032000,-500.0,0.00027009,2]
[421356416,1777491032000,-500.0,0.00027009,2]
[421356400,1777491032000,-500.0,0.00027009,2]
[421356375,1777491032000,-150.0,0.00024658,2]
[421356367,1777491032000,-3828.20854592,0.00024469,112]
[421356371,1777491032000,-160.0,0.00024586,2]
[421356325,1777491032000,-2000.0,0.000199,2]
[421356323,1777491032000,-200.0,0.000198,7]
[421356327,1777491032000,-265.0,0.0002,2]
[421356330,1777491032000,-265.0,0.00021,2]
[421356322,1777491032000,-1927.37084715,0.00019614,2]
[421356328,1777491032000,-1600.0,0.00020573,2]
[421356326,1777491032000,-400.0,0.000199,7]
[421356324,1777491032000,-156.07072791,0.00019877,2]
[421356332,1777491032000,-156.07072795,0.00021704,2]
[421356340,1777491032000,-1927.3708471,0.00022057,2]
[421356345,1777491032000,-500.0,0.00022966,2]
[421356341,1777491032000,-200.0,0.00022088,2]
[421356343,1777491032000,-162.31979731,0.00022746,2]
[421356373,1777491032000,-1000.0,0.00024658,2]
[421356338,1777491032000,-37742.96126874,0.00022,4]
[421356336,1777491032000,-265.0,0.00022,2]
[421356350,1777491032000,-150.0,0.00023127,2]
[421356347,1777491032000,-265.0,0.00023,2]
[421356351,1777491032000,-200.0,0.00023127,2]
[421356353,1777491032000,-1600.0,0.00023145,2]
[421356355,1777491032000,-1000.0,0.00023154,2]
[421356357,1777491032000,-500.0,0.00023351,2]
[421356363,1777491032000,-10015.59694423,0.000238,2]
[421356361,1777491032000,-2000.0,0.000236,2]
[421356359,1777491032000,-395.38304612,0.00023356,2]
[421356365,1777491032000,-265.0,0.00024,2]
[421356424,1777491032000,-500.0,0.00027009,2]
[421356369,1777491032000,-1927.3708471,0.000245,2]
[421356334,1777491032000,-5000.0,0.00021918,2]
[421356425,1777491032000,-500.0,0.00027009,2]
[421356412,1777491032000,-500.0,0.00027009,2]
[421356415,1777491032000,-500.0,0.00027009,2]
[421356448,1777491032000,-500.0,0.00027009,2]
[421356453,1777491032000,-500.0,0.00027009,2]
[421356454,1777491032000,-500.0,0.00027009,2]
[421356463,1777491032000,-500.0,0.00027009,2]
[421356452,1777491032000,-500.0,0.00027009,2]
[421356456,1777491032000,-500.0,0.00027009,2]
[421356455,1777491032000,-500.0,0.00027009,2]
[421356457,1777491032000,-500.0,0.00027009,2]
[421356460,1777491032000,-500.0,0.00027009,2]
[421356459,1777491032000,-997.0,0.00027009,2]
[421356458,1777491032000,-500.0,0.00027009,2]
[421356417,1777491032000,-500.0,0.00027009,2]
[421356462,1777491032000,-500.0,0.00027009,2]
[421356446,1777491032000,-500.0,0.00027009,2]
[421356464,1777491032000,-500.0,0.00027009,2]
[421356475,1777491032000,-500.0,0.00027009,2]
[421356469,1777491032000,-500.0,0.00027009,2]
[421356466,1777491032000,-500.0,0.00027009,2]
[421356467,1777491032000,-500.0,0.00027009,2]
[421356468,1777491032000,-500.0,0.00027009,2]
[421356471,1777491032000,-500.0,0.00027009,2]
[421356470,1777491032000,-500.0,0.00027009,2]
[421356473,1777491032000,-500.0,0.00027009,2]
[421356474,1777491032000,-500.0,0.00027009,2]
[421356472,1777491032000,-500.0,0.00027009,2]
[421356476,1777491032000,-500.0,0.00027009,2]
[421356477,1777491032000,-500.0,0.00027009,2]
[421356478,1777491032000,-500.0,0.00027009,2]
[421356465,1777491032000,-500.0,0.00027009,2]
[421356442,1777491032000,-500.0,0.00027009,2]
[421356461,1777491032000,-500.0,0.00027009,2]
[421356447,1777491032000,-500.0,0.00027009,2]
[421356444,1777491032000,-500.0,0.00027009,2]
[421356422,1777491032000,-500.0,0.00027009,2]
[421356419,1777491032000,-500.0,0.00027009,2]
[421356420,1777491032000,-500.0,0.00027009,2]
[421356414,1777491032000,-500.0,0.00027009,2]
[421356421,1777491032000,-500.0,0.00027009,2]
[421356418,1777491032000,-500.0,0.00027009,2]
[421356423,1777491032000,-500.0,0.00027009,2]
[421356428,1777491032000,-500.0,0.00027009,2]
[421356439,1777491032000,-500.0,0.00027009,2]
[421356436,1777491032000,-500.0,0.00027009,2]
[421356438,1777491032000,-500.0,0.00027009,2]
[421356437,1777491032000,-500.0,0.00027009,2]
[421356427,1777491032000,-500.0,0.00027009,2]
[421356426,1777491032000,-500.0,0.00027009,2]
[421356429,1777491032000,-500.0,0.00027009,2]
[421356430,1777491032000,-500.0,0.00027009,2]
[421356445,1777491032000,-500.0,0.00027009,2]
[421356451,1777491032000,-500.0,0.00027009,2]
[421356450,1777491032000,-500.0,0.00027009,2]
[421356441,1777491032000,-500.0,0.00027009,2]
[421356449,1777491032000,-500.0,0.00027009,2]
[421356443,1777491032000,-500.0,0.00027009,2]
[421356435,1777491032000,-500.0,0.00027009,2]
[421356433,1777491032000,-500.0,0.00027009,2]
[421356432,1777491032000,-500.0,0.00027009,2]
[421356434,1777491032000,-500.0,0.00027009,2]
[421356431,1777491032000,-500.0,0.00027009,2]
[421356440,1777491032000,-500.0,0.00027009,2]
[421356499,1777491033000,-500.0,0.00027009,2]
[421356489,1777491033000,-500.0,0.00027009,2]
[421356490,1777491033000,-500.0,0.00027009,2]
[421356491,1777491033000,-500.0,0.00027009,2]
[421356502,1777491033000,-500.0,0.00027009,2]
[421356500,1777491033000,-500.0,0.00027009,2]
[421356507,1777491033000,-500.0,0.00027009,2]
[421356506,1777491033000,-500.0,0.00027009,2]
[421356510,1777491033000,-500.0,0.00027009,2]
[421356488,1777491033000,-500.0,0.00027009,2]
[421356492,1777491033000,-500.0,0.00027009,2]
[421356493,1777491033000,-500.0,0.00027009,2]
[421356486,1777491033000,-500.0,0.00027009,2]
[421356487,1777491033000,-500.0,0.00027009,2]
[421356498,1777491033000,-500.0,0.00027009,2]
[421356495,1777491033000,-500.0,0.00027009,2]
[421356496,1777491033000,-500.0,0.00027009,2]
[421356494,1777491033000,-500.0,0.00027009,2]
[421356483,1777491033000,-500.0,0.00027009,2]
[421356481,1777491033000,-500.0,0.00027009,2]
[421356482,1777491033000,-500.0,0.00027009,2]
[421356479,1777491033000,-500.0,0.00027009,2]
[421356484,1777491033000,-500.0,0.00027009,2]
[421356480,1777491033000,-500.0,0.00027009,2]
[421356508,1777491033000,-500.0,0.00027009,2]
[421356497,1777491033000,-500.0,0.00027009,2]
[421356505,1777491033000,-500.0,0.00027009,2]
[421356485,1777491033000,-500.0,0.00027009,2]
[421356503,1777491033000,-500.0,0.00027009,2]
[421356504,1777491033000,-500.0,0.00027009,2]
[421356529,1777491033000,-500.0,0.00027009,2]
[421356528,1777491033000,-261.45876694,0.00027009,2]
[421356530,1777491033000,-500.0,0.00027009,2]
[421356527,1777491033000,-1663.0,0.00020032,2]
[421356532,1777491033000,-134.50635724,0.00027009,2]
[421356533,1777491033000,-365.49364276,0.00027009,2]
[421356534,1777491033000,-448.47007208,0.00027009,2]
[421356531,1777491033000,-500.0,0.00027009,2]
[421356526,1777491033000,-238.54123306,0.00027009,2]
[421356525,1777491033000,-500.0,0.00027009,2]
[421356514,1777491033000,-500.0,0.00027009,2]
[421356516,1777491033000,-500.0,0.00027009,2]
[421356515,1777491033000,-500.0,0.00027009,2]
[421356524,1777491033000,-500.0,0.00027009,2]
[421356522,1777491033000,-500.0,0.00027009,2]
[421356523,1777491033000,-500.0,0.00027009,2]
[421356521,1777491033000,-500.0,0.00027009,2]
[421356518,1777491033000,-500.0,0.00027009,2]
[421356519,1777491033000,-500.0,0.00027009,2]
[421356520,1777491033000,-500.0,0.00027009,2]
[421356517,1777491033000,-500.0,0.00027009,2]
[421356512,1777491033000,-500.0,0.00027009,2]
[421356501,1777491033000,-500.0,0.00027009,2]
[421356511,1777491033000,-500.0,0.00027009,2]
[421356509,1777491033000,-500.0,0.00027009,2]
[421356513,1777491033000,-500.0,0.00027009,2]
[421356730,1777491040000,-535.94538832,0.00023032,2]
[421356728,1777491040000,-480.53080747,0.00023032,2]
[421356745,1777491040000,-150.0,0.00024658,2]
[421356743,1777491040000,-646.52380421,0.00023032,2]
[421356779,1777491040000,-697.5,0.00026032,2]
[421356747,1777491040000,-721.31777827,0.00026032,2]
[421356791,1777491040000,-629.81777827,0.00026032,10]
[421356787,1777491040000,-244.18222173,0.00026032,2]
[421356789,1777491040000,-703.0,0.00026032,10]
[421357420,1777491047000,-212.24412139,0.00019614,2]
[421357421,1777491047000,-2308.07608393,0.00019614,2]
[421357440,1777491049000,-500.0,0.00027009,2]
[421357435,1777491049000,-500.0,0.00027009,2]
[421357439,1777491049000,-500.0,0.00027009,2]
[421357437,1777491049000,-500.0,0.00027009,2]
[421357436,1777491049000,-500.0,0.00027009,2]
[421357446,1777491049000,-500.0,0.00027009,2]
[421357445,1777491049000,-500.0,0.00027009,2]
[421357433,1777491049000,-500.0,0.00027009,2]
[421357447,1777491049000,-500.0,0.00027009,2]
[421357449,1777491049000,-500.0,0.00027009,2]
[421357452,1777491049000,-500.0,0.00027009,2]
[421357444,1777491049000,-500.0,0.00027009,2]
[421357443,1777491049000,-500.0,0.00027009,2]
[421357431,1777491049000,-500.0,0.00027009,2]
[421357441,1777491049000,-500.0,0.00027009,2]
[421357434,1777491049000,-500.0,0.00027009,2]
[421357426,1777491049000,-150.0,0.00026164,2]
[421357427,1777491049000,-51.52992792,0.00027009,2]
[421357432,1777491049000,-500.0,0.00027009,2]
[421357428,1777491049000,-500.0,0.00027009,2]
[421357430,1777491049000,-500.0,0.00027009,2]
[421357429,1777491049000,-500.0,0.00027009,2]
[421357424,1777491049000,-2661.0,0.00019614,5]
[421357425,1777491049000,-150.32,0.00024658,2]
[421357423,1777491049000,-644.0,0.00019614,5]
[421357422,1777491049000,-2479.67979468,0.00019614,2]
[421357448,1777491049000,-500.0,0.00027009,2]
[421357442,1777491049000,-500.0,0.00027009,2]
[421357450,1777491049000,-500.0,0.00027009,2]
[421357438,1777491049000,-686.0,0.00027009,2]
[421357451,1777491049000,-500.0,0.00027009,2]
[421357479,1777491049000,-500.0,0.00027009,2]
[421357453,1777491049000,-500.0,0.00027009,2]
[421357487,1777491049000,-500.0,0.00027009,2]
[421357483,1777491049000,-500.0,0.00027009,2]
[421357481,1777491049000,-500.0,0.00027009,2]
[421357490,1777491049000,-500.0,0.00027009,2]
[421357472,1777491049000,-500.0,0.00027009,2]
[421357476,1777491049000,-500.0,0.00027009,2]
[421357470,1777491049000,-500.0,0.00027009,2]
[421357471,1777491049000,-500.0,0.00027009,2]
[421357474,1777491049000,-500.0,0.00027009,2]
[421357473,1777491049000,-500.0,0.00027009,2]
[421357468,1777491049000,-500.0,0.00027009,2]
[421357469,1777491049000,-500.0,0.00027009,2]
[421357486,1777491049000,-500.0,0.00027009,2]
[421357466,1777491049000,-500.0,0.00027009,2]
[421357467,1777491049000,-500.0,0.00027009,2]
[421357455,1777491049000,-500.0,0.00027009,2]
[421357456,1777491049000,-500.0,0.00027009,2]
[421357463,1777491049000,-500.0,0.00027009,2]
[421357465,1777491049000,-500.0,0.00027009,2]
[421357464,1777491049000,-500.0,0.00027009,2]
[421357454,1777491049000,-500.0,0.00027009,2]
[421357458,1777491049000,-500.0,0.00027009,2]
[421357461,1777491049000,-500.0,0.00027009,2]
[421357462,1777491049000,-500.0,0.00027009,2]
[421357459,1777491049000,-500.0,0.00027009,2]
[421357460,1777491049000,-500.0,0.00027009,2]
[421357457,1777491049000,-500.0,0.00027009,2]
[421357522,1777491050000,-500.0,0.00027009,2]
[421357531,1777491050000,-500.0,0.00027009,2]
[421357523,1777491050000,-500.0,0.00027009,2]